[Event "1st Regina Cattolica Open 2019"]
[Site "Cattolica"]
[Date "2019.06.16"]
[Round "5.5"]
[White "Albertini, Luca"]
[Black "Cappai, Davide"]
[Result "0-1"]
[ECO "A08"]
[WhiteElo "2161"]
[BlackElo "2185"]
[Annotator "NA"]
[PlyCount "81"]
[EventDate "2019.06.14"]
[EventType "swiss"]
[EventCountry "ITA"]
[SourceTitle "playchess.com"]
[Source "ChessBase"]
[SourceQuality "1"]
[TimeControl "5400+30"]

1. Nf3 {[%emt 0:02:54]} c5 {[%emt 0:00:00]} 2. g3 {[%emt 1:28:06]} Nc6 {[%emt 0:00:31]} 3. Bg2 {[%emt 0:00:00]} d5 {[%emt 0:00:54]} 4. O-O {[%emt 0:00:00]} e5 {[%emt 0:02:30]} 5. d3 {[%emt 0:00:00]} Nf6 {[%emt 0:00:32]} 6. c3 {[%emt 0:00:00]} Be7 {[%emt 0:01:58]} 7. a3 {[%emt 0:00:00]} a5 {[%emt 0:01:18]} 8. Qc2 {[%emt 0:00:00]} O-O {[%emt 0:01:22]} 9. Nbd2 {[%emt 0:00:00]} Be6 {[%emt 0:02:32]} 10. e4 {[%emt 0:00:00]} Qc7 {[%emt 0:01:32]} 11. exd5 {[%emt 0:00:00]} Nxd5 {[%emt 0:00:20]} 12. Re1 {[%emt 0:00:00]} Nf6 {[%emt 0:14:26]} 13. Ne4 {[%emt 0:00:00]} Nxe4 {[%emt 0:01:16]} 14. Rxe4 {[%emt 0:00:00]} Bf5 {[%emt 0:01:41]} 15. Re1 {[%emt 0:00:00]} c4 {[%emt 0:01:19]} 16. Bf1 {[%emt 0:00:00]} Rad8 {[%emt 0:02:14]} 17. Be3 {[%emt 0:00:00]} cxd3 {[%emt 0:01:11]} 18. Qb3 {[%emt 0:00:00]} Rd7 {[%emt 0:02:07]} 19. Rad1 {[%emt 0:00:00]} e4 {[%emt 0:02:06]} 20. Bb6 {[%emt 0:00:00]} Qd6 {[%emt 0:02:22]} 21. Nd4 {[%emt 0:00:00]} Nxd4 {[%emt 0:00:16]} 22. cxd4 {[%emt 0:00:00]} a4 {[%emt 0:01:31]} 23. Qb5 {[%emt 0:00:00]} Bg4 {[%emt 0:01:16]} 24. Rd2 {[%emt 0:00:00]} f5 {[%emt 0:04:04]} 25. Bc5 {[%emt 0:00:00]} Qd5 {[%emt 0:00:12]} 26. Qxa4 {[%emt 0:00:00]} Bg5 {[%emt 0:00:35]} 27. f4 {[%emt 0:00:00]} Bf6 {[%emt 0:00:41]} 28. Bxf8 {[%emt 0:00:00]} Qxd4+ {[%emt 0:01:17]} 29. Qxd4 {[%emt 0:00:00]} Bxd4+ {[%emt 0:00:06]} 30. Kh1 {[%emt 0:00:00]} Kxf8 {[%emt 0:00:26]} 31. h3 {[%emt 0:00:00]} Bf3+ {[%emt 0:00:24]} 32. Kh2 {[%emt 0:00:00]} Kf7 {[%emt 0:00:14]} 33. g4 {[%emt 0:00:00]} g5 {[%emt 0:00:46]} 34. Kg3 {[%emt 0:00:00]} Kf6 {[%emt 0:02:08]} 35. gxf5 {[%emt 0:00:00]} Kxf5 {[%emt 0:00:45]} 36. fxg5 {[%emt 0:00:00]} Be5+ {[%emt 0:00:54]} 37. Kf2 {[%emt 0:00:00]} Kf4 {[%emt 0:01:44]} 38. Kg1 {[%emt 0:00:00]} Bd4+ {[%emt 0:00:16]} 39. Kh2 {[%emt 0:00:00]} Be3 {[%emt 0:00:06]} 40. Rdd1 {[%emt 0:00:00]} Bf2 {[%emt 0:00:34]} 41. Bxd3 {[%emt 0:19:30]} 0-1

[Event "1st Regina Cattolica Open 2019"]
[Site "Cattolica"]
[Date "2019.06.16"]
[Round "5.6"]
[White "Malfagia, Andrea"]
[Black "Rago, Riccardo"]
[Result "1-0"]
[ECO "D35"]
[WhiteElo "2191"]
[BlackElo "2097"]
[Annotator "NA"]
[PlyCount "49"]
[EventDate "2019.06.14"]
[EventType "swiss"]
[EventCountry "ITA"]
[SourceTitle "playchess.com"]
[Source "ChessBase"]
[SourceQuality "1"]
[TimeControl "5400+30"]

1. d4 {[%emt 0:00:00]} d5 {[%emt 0:00:00]} 2. c4 {[%emt 0:00:00]} e6 {[%emt 0:00:10]} 3. Nc3 {[%emt 0:00:00]} Nf6 {[%emt 0:00:09]} 4. cxd5 {[%emt 0:00:00]} exd5 {[%emt 0:01:54]} 5. Bg5 {[%emt 0:00:00]} Be7 {[%emt 0:01:05]} 6. e3 {[%emt 0:00:16]} c6 {[%emt 0:08:18]} 7. Bd3 {[%emt 0:00:58]} h6 {[%emt 0:01:38]} 8. Bf4 {[%emt 0:01:56]} Nbd7 {[%emt 0:03:52]} 9. h3 {[%emt 0:05:53]} Nf8 {[%emt 0:09:02]} 10. Qc2 {[%emt 0:00:23]} Ne6 {[%emt 0:04:09]} 11. Be5 {[%emt 0:03:50]} Qa5 {[%emt 0:01:45]} 12. Nge2 {[%emt 0:00:44]} Bd7 {[%emt 0:09:04]} 13. O-O-O {[%emt 0:05:42]} Rc8 {[%emt 0:14:47]} 14. Kb1 {[%emt 0:00:34]} c5 {[%emt 0:02:13]} 15. dxc5 {[%emt 0:05:25]} Rxc5 {[%emt 0:02:02]} 16. Nd4 {[%emt 0:08:18]} Nxd4 {[%emt 0:01:04]} 17. Bxd4 {[%emt 0:00:52]} Rc8 {[%emt 0:00:21]} 18. Bf5 {[%emt 0:04:15]} Rd8 {[%emt 0:06:45]} 19. Bxf6 {[%emt 0:02:30]} Bxf6 {[%emt 0:01:35]} 20. Nxd5 {[%emt 0:02:21]} Be5 {[%emt 0:07:01]} 21. Qe4 {[%emt 0:04:34]} f6 {[%emt 0:04:38]} 22. Bxd7+ {[%emt 0:01:29]} Kxd7 {[%emt 0:01:59]} 23. Nxf6+ {[%emt 0:14:02]} Kc8 {[%emt 0:00:54]} 24. Rd5 {[%emt 0:06:01]} Qb6 {[%emt 0:02:53]} 25. Qxe5 {[%emt 0:02:41]} 1-0

[Event "1st Regina Cattolica Open 2019"]
[Site "Cattolica"]
[Date "2019.06.16"]
[Round "5.7"]
[White "Bettalli, Francesco"]
[Black "Imburgia, Giuseppe"]
[Result "0-1"]
[ECO "C15"]
[WhiteElo "2169"]
[BlackElo "2041"]
[Annotator "NA"]
[PlyCount "144"]
[EventDate "2019.06.14"]
[EventType "swiss"]
[EventCountry "ITA"]
[SourceTitle "playchess.com"]
[Source "ChessBase"]
[SourceQuality "1"]
[TimeControl "5400+30"]

1. e4 {[%emt 0:01:10]} e6 {[%emt 0:00:00]} 2. d4 {[%emt 0:00:12]} d5 {[%emt 0:00:00]} 3. Nc3 {[%emt 0:00:09]} Bb4 {[%emt 0:00:02]} 4. Nge2 {[%emt 0:00:12]} dxe4 {[%emt 0:01:05]} 5. a3 {[%emt 0:00:22]} Bxc3+ {[%emt 0:00:48]} 6. Nxc3 {[%emt 0:00:12]} Nc6 {[%emt 0:00:56]} 7. Bb5 {[%emt 0:00:13]} Bd7 {[%emt 0:06:50]} 8. Nxe4 {[%emt 0:01:47]} Nce7 {[%emt 0:13:06]} 9. Qe2 {[%emt 0:07:49]} a6 {[%emt 0:05:53]} 10. Bd3 {[%emt 0:00:42]} Bc6 {[%emt 0:03:50]} 11. c3 {[%emt 0:00:54]} Bxe4 {[%emt 0:07:37]} 12. Bxe4 {[%emt 0:01:04]} c6 {[%emt 0:00:25]} 13. Bf4 {[%emt 1:21:44]} Nf6 {[%emt 0:00:49]} 14. Bf3 {[%emt 0:00:00]} O-O {[%emt 0:02:19]} 15. O-O {[%emt 0:00:00]} Qb6 {[%emt 0:06:26]} 16. Rfd1 {[%emt 0:01:30]} Rfd8 {[%emt 0:02:27]} 17. Bg5 {[%emt 0:00:00]} Ng6 {[%emt 0:05:15]} 18. h4 {[%emt 0:00:00]} h6 {[%emt 0:06:31]} 19. h5 {[%emt 0:00:00]} Ne7 {[%emt 0:01:50]} 20. Bh4 {[%emt 0:00:00]} Nf5 {[%emt 0:02:04]} 21. Bxf6 {[%emt 0:00:00]} gxf6 {[%emt 0:00:36]} 22. Be4 {[%emt 0:00:00]} Ng7 {[%emt 0:05:07]} 23. g4 {[%emt 0:00:00]} Qb5 {[%emt 0:02:42]} 24. Rd3 {[%emt 0:00:00]} f5 {[%emt 0:04:47]} 25. a4 {[%emt 0:00:00]} Qa5 {[%emt 0:03:06]} 26. gxf5 {[%emt 0:00:00]} exf5 {[%emt 0:00:35]} 27. Bg2 {[%emt 0:00:00]} f4 {[%emt 0:03:01]} 28. d5 {[%emt 0:00:00]} Qc7 {[%emt 0:03:53]} 29. Rad1 {[%emt 0:00:00]} cxd5 {[%emt 0:02:18]} 30. Rxd5 {[%emt 0:00:00]} Rxd5 {[%emt 0:00:08]} 31. Rxd5 {[%emt 0:00:00]} Re8 {[%emt 0:00:57]} 32. Qd1 {[%emt 0:00:00]} b6 {[%emt 0:01:12]} 33. Bf3 {[%emt 0:00:00]} Ne6 {[%emt 0:01:45]} 34. Qe2 {[%emt 0:00:00]} Qe7 {[%emt 0:03:47]} 35. Kf1 {[%emt 0:00:00]} Qh4 {[%emt 0:00:50]} 36. Re5 {[%emt 0:00:00]} Rd8 {[%emt 0:01:20]} 37. Bg2 {[%emt 0:00:00]} Ng5 {[%emt 0:01:56]} 38. Re8+ {[%emt 0:00:00]} Rxe8 {[%emt 0:00:10]} 39. Qxe8+ {[%emt 0:00:00]} Kg7 {[%emt 0:01:18]} 40. Qe5+ {[%emt 0:00:00]} Kg8 {[%emt 0:00:16]} 41. f3 {[%emt 0:00:00]} Qxh5 {[%emt 0:01:10]} 42. Qxf4 {[%emt 0:00:00]} Qg6 {[%emt 0:00:15]} 43. Qd2 {[%emt 0:00:00]} Qb1+ {[%emt 0:01:03]} 44. Kf2 {[%emt 0:00:00]} Qg6 {[%emt 0:00:37]} 45. b4 {[%emt 0:00:00]} Qf6 {[%emt 0:00:13]} 46. Qd3 {[%emt 0:00:00]} a5 {[%emt 0:00:24]} 47. bxa5 {[%emt 0:01:09]} bxa5 {[%emt 0:00:01]} 48. Qd4 {[%emt 0:02:07]} Qf5 {[%emt 0:00:12]} 49. Kg3 {[%emt 0:01:12]} h5 {[%emt 0:01:28]} 50. Qf4 {[%emt 0:06:28]} Qxf4+ {[%emt 0:00:29]} 51. Kxf4 {[%emt 0:00:01]} Ne6+ {[%emt 0:00:08]} 52. Ke5 {[%emt 0:02:00]} Nc5 {[%emt 0:00:05]} 53. Kd4 {[%emt 0:00:34]} Nxa4 {[%emt 0:00:11]} 54. c4 {[%emt 0:00:28]} Kf8 {[%emt 0:00:18]} 55. c5 {[%emt 0:00:25]} Ke7 {[%emt 0:00:20]} 56. Bh3 {[%emt 0:00:31]} Kd8 {[%emt 0:00:51]} 57. Kc4 {[%emt 0:00:15]} Kc7 {[%emt 0:00:56]} 58. f4 {[%emt 0:03:35]} Nb2+ {[%emt 0:00:37]} 59. Kc3 {[%emt 0:00:06]} Nd1+ {[%emt 0:00:25]} 60. Kd2 {[%emt 0:00:09]} Nf2 {[%emt 0:00:45]} 61. Bf5 {[%emt 0:00:01]} Kc6 {[%emt 0:00:51]} 62. Ke2 {[%emt 0:00:53]} Ng4 {[%emt 0:00:14]} 63. Kf3 {[%emt 0:00:15]} Kxc5 {[%emt 0:00:09]} 64. Kg3 {[%emt 0:00:41]} a4 {[%emt 0:00:41]} 65. Kh4 {[%emt 0:00:11]} a3 {[%emt 0:00:51]} 66. Bb1 {[%emt 0:00:01]} Nf6 {[%emt 0:00:18]} 67. Ba2 {[%emt 0:00:18]} Nd5 {[%emt 0:00:46]} 68. f5 {[%emt 0:00:09]} Nc3 {[%emt 0:00:34]} 69. Bb3 {[%emt 0:01:05]} a2 {[%emt 0:00:20]} 70. Bxa2 {[%emt 0:00:01]} Nxa2 {[%emt 0:00:07]} 71. Kg5 {[%emt 0:00:01]} Nc3 {[%emt 0:01:06]} 72. Kf6 {[%emt 0:00:05]} h4 {[%emt 0:00:18]} 0-1

[Event "1st Regina Cattolica Open 2019"]
[Site "Cattolica"]
[Date "2019.06.16"]
[Round "5.8"]
[White "Varvaglione, Antonio"]
[Black "Cayla, Jonathan"]
[Result "0-1"]
[ECO "B13"]
[WhiteElo "2154"]
[BlackElo "1997"]
[Annotator "NA"]
[PlyCount "68"]
[EventDate "2019.06.14"]
[EventType "swiss"]
[EventCountry "ITA"]
[SourceTitle "playchess.com"]
[Source "ChessBase"]
[SourceQuality "1"]
[TimeControl "5400+30"]

1. e4 {[%emt 0:00:00]} c6 {[%emt 0:00:00]} 2. d4 {[%emt 0:00:04]} d5 {[%emt 0:00:00]} 3. exd5 {[%emt 0:00:21]} cxd5 {[%emt 0:00:00]} 4. c4 {[%emt 0:00:34]} Nf6 {[%emt 0:00:13]} 5. Nc3 {[%emt 0:05:00]} Nc6 {[%emt 0:00:07]} 6. Nf3 {[%emt 0:00:43]} Bg4 {[%emt 0:00:10]} 7. cxd5 {[%emt 0:01:42]} Nxd5 {[%emt 0:00:09]} 8. Bc4 {[%emt 0:01:42]} e6 {[%emt 0:06:28]} 9. O-O {[%emt 0:09:09]} Bxf3 {[%emt 0:14:25]} 10. Qxf3 {[%emt 0:00:50]} Nxd4 {[%emt 0:05:09]} 11. Qd3 {[%emt 0:02:39]} Nxc3 {[%emt 0:03:27]} 12. Qxc3 {[%emt 0:00:44]} Rc8 {[%emt 0:03:47]} 13. Rd1 {[%emt 0:03:07]} Rxc4 {[%emt 0:01:47]} 14. Qxc4 {[%emt 0:01:22]} Nf3+ {[%emt 0:00:26]} 15. gxf3 {[%emt 0:00:13]} Qxd1+ {[%emt 0:00:06]} 16. Kg2 {[%emt 0:00:12]} Qd7 {[%emt 0:06:31]} 17. Be3 {[%emt 0:00:49]} b6 {[%emt 0:02:15]} 18. Rc1 {[%emt 0:01:55]} Be7 {[%emt 0:00:48]} 19. Qc7 {[%emt 0:02:07]} Bd8 {[%emt 0:01:21]} 20. Qc8 {[%emt 0:00:54]} h6 {[%emt 0:07:46]} 21. Bf4 {[%emt 0:08:29]} Qxc8 {[%emt 0:18:42]} 22. Rxc8 {[%emt 0:00:41]} O-O {[%emt 0:01:20]} 23. Rc6 {[%emt 0:01:22]} Bf6 {[%emt 0:00:49]} 24. b4 {[%emt 0:04:10]} Rd8 {[%emt 0:00:53]} 25. Be3 {[%emt 0:04:02]} Rd3 {[%emt 0:03:32]} 26. Rc8+ {[%emt 0:00:29]} Kh7 {[%emt 0:01:28]} 27. Ra8 {[%emt 0:00:38]} Bd4 {[%emt 0:07:07]} 28. Rd8 {[%emt 0:01:08]} e5 {[%emt 0:00:06]} 29. f4 {[%emt 0:02:46]} Ra3 {[%emt 0:00:18]} 30. fxe5 {[%emt 0:02:51]} Bxe3 {[%emt 0:00:12]} 31. fxe3 {[%emt 0:00:14]} Rxa2+ {[%emt 0:00:26]} 32. Kg3 {[%emt 0:00:14]} Ra4 {[%emt 0:03:18]} 33. Rd4 {[%emt 0:03:03]} a5 {[%emt 0:00:11]} 34. bxa5 {[%emt 0:00:29]} Rxd4 {[%emt 0:01:18]} 0-1

[Event "1st Regina Cattolica Open 2019"]
[Site "Cattolica"]
[Date "2019.06.16"]
[Round "5.9"]
[White "Doric, Senad"]
[Black "Volpinari, Danilo"]
[Result "1-0"]
[ECO "A44"]
[WhiteElo "2087"]
[BlackElo "1966"]
[Annotator "NA"]
[PlyCount "69"]
[EventDate "2019.06.14"]
[EventType "swiss"]
[EventCountry "ITA"]
[SourceTitle "playchess.com"]
[Source "ChessBase"]
[SourceQuality "1"]
[TimeControl "5400+30"]

1. d4 {[%emt 0:00:00]} c5 {[%emt 0:00:18]} 2. d5 {[%emt 0:01:43]} e5 {[%emt 0:00:23]} 3. c4 {[%emt 0:00:08]} d6 {[%emt 0:00:29]} 4. Nc3 {[%emt 0:00:12]} f5 {[%emt 0:08:02]} 5. e4 {[%emt 0:00:35]} Nf6 {[%emt 0:02:12]} 6. Bd3 {[%emt 0:00:46]} f4 {[%emt 0:02:34]} 7. g3 {[%emt 0:01:07]} fxg3 {[%emt 0:06:16]} 8. hxg3 {[%emt 0:00:13]} Be7 {[%emt 0:00:42]} 9. f3 {[%emt 0:10:36]} Nbd7 {[%emt 0:01:12]} 10. Be3 {[%emt 0:00:14]} Nf8 {[%emt 0:02:20]} 11. Qd2 {[%emt 0:00:40]} Qa5 {[%emt 0:04:03]} 12. O-O-O {[%emt 0:03:21]} Bd7 {[%emt 0:01:33]} 13. Nh3 {[%emt 0:03:26]} h6 {[%emt 0:09:43]} 14. Kb1 {[%emt 0:00:59]} O-O-O {[%emt 0:00:50]} 15. Nf2 {[%emt 0:00:53]} Ng6 {[%emt 0:05:54]} 16. f4 {[%emt 0:01:37]} Rdg8 {[%emt 0:05:57]} 17. Rdg1 {[%emt 0:09:41]} Qd8 {[%emt 0:02:32]} 18. Be2 {[%emt 0:01:09]} Kb8 {[%emt 0:02:47]} 19. Qd1 {[%emt 0:01:03]} Qc8 {[%emt 0:00:32]} 20. Rh2 {[%emt 0:01:22]} Nh7 {[%emt 0:05:25]} 21. Bh5 {[%emt 0:06:07]} Be8 {[%emt 0:04:15]} 22. Nd3 {[%emt 0:10:05]} Bf6 {[%emt 0:11:08]} 23. Qg4 {[%emt 0:04:43]} Qxg4 {[%emt 0:02:33]} 24. Bxg4 {[%emt 0:00:09]} a6 {[%emt 0:05:09]} 25. Rf1 {[%emt 0:01:04]} Rf8 {[%emt 0:00:33]} 26. Rhf2 {[%emt 0:00:38]} b6 {[%emt 0:02:09]} 27. Bf5 {[%emt 0:00:54]} Kc7 {[%emt 0:01:05]} 28. Kc2 {[%emt 0:01:56]} Kd8 {[%emt 0:01:57]} 29. b4 {[%emt 0:00:52]} Kc7 {[%emt 0:00:56]} 30. Rb1 {[%emt 0:02:40]} h5 {[%emt 0:06:11]} 31. Rh1 {[%emt 0:04:34]} Ne7 {[%emt 0:01:57]} 32. Bxh7 {[%emt 0:01:00]} Rxh7 {[%emt 0:02:22]} 33. fxe5 {[%emt 0:00:13]} dxe5 {[%emt 0:00:26]} 34. bxc5 {[%emt 0:00:13]} bxc5 {[%emt 0:00:40]} 35. Nxc5 {[%emt 0:00:10]} 1-0

[Event "1st Regina Cattolica Open 2019"]
[Site "Cattolica"]
[Date "2019.06.16"]
[Round "5.10"]
[White "Carletti, Angelo"]
[Black "Gohshtein, Pavel"]
[Result "1/2-1/2"]
[ECO "D03"]
[WhiteElo "1929"]
[BlackElo "2055"]
[Annotator "NA"]
[PlyCount "138"]
[EventDate "2019.06.14"]
[EventType "swiss"]
[EventCountry "ITA"]
[SourceTitle "playchess.com"]
[Source "ChessBase"]
[SourceQuality "1"]
[TimeControl "5400+30"]

1. d4 {[%emt 0:00:00]} Nf6 {[%emt 0:00:00]} 2. Bg5 {[%emt 0:00:00]} d5 {[%emt 0:00:13]} 3. e3 {[%emt 0:01:39]} c6 {[%emt 0:02:55]} 4. Nd2 {[%emt 0:05:14]} Bf5 {[%emt 0:05:59]} 5. Ngf3 {[%emt 0:05:36]} Nbd7 {[%emt 0:02:18]} 6. c4 {[%emt 0:02:41]} h6 {[%emt 0:01:27]} 7. Bf4 {[%emt 0:01:34]} Nh5 {[%emt 0:01:49]} 8. Bg3 {[%emt 0:00:39]} Nxg3 {[%emt 0:01:21]} 9. hxg3 {[%emt 0:00:07]} e6 {[%emt 0:00:44]} 10. Qb3 {[%emt 0:02:58]} Qb6 {[%emt 0:00:39]} 11. Be2 {[%emt 0:06:45]} Qxb3 {[%emt 0:01:57]} 12. axb3 {[%emt 0:01:31]} Bb4 {[%emt 0:01:54]} 13. Kd1 {[%emt 0:01:49]} O-O {[%emt 0:00:57]} 14. Ne1 {[%emt 0:01:41]} Bd6 {[%emt 0:05:12]} 15. Bd3 {[%emt 0:03:03]} Bxd3 {[%emt 0:00:39]} 16. Nxd3 {[%emt 0:00:06]} e5 {[%emt 0:02:32]} 17. Kc2 {[%emt 0:02:53]} exd4 {[%emt 0:02:42]} 18. exd4 {[%emt 0:00:10]} Rfe8 {[%emt 0:02:26]} 19. c5 {[%emt 0:06:37]} Bf8 {[%emt 0:02:15]} 20. Rhe1 {[%emt 0:00:30]} a6 {[%emt 0:00:52]} 21. b4 {[%emt 0:01:20]} g6 {[%emt 0:03:45]} 22. Nb3 {[%emt 0:05:55]} Bg7 {[%emt 0:00:35]} 23. Rxe8+ {[%emt 0:13:11]} Rxe8 {[%emt 0:00:01]} 24. Re1 {[%emt 0:00:18]} Rxe1 {[%emt 0:09:04]} 25. Nxe1 {[%emt 0:00:06]} Nf8 {[%emt 0:00:14]} 26. Na5 {[%emt 0:12:46]} Ne6 {[%emt 0:06:17]} 27. Nf3 {[%emt 0:06:42]} Nd8 {[%emt 0:04:36]} 28. Kd3 {[%emt 0:00:14]} Kf8 {[%emt 0:00:27]} 29. Ne1 {[%emt 0:00:59]} h5 {[%emt 0:02:21]} 30. f4 {[%emt 0:00:36]} Ke7 {[%emt 0:01:00]} 31. Ke3 {[%emt 0:03:39]} Ke6 {[%emt 0:00:39]} 32. Nc2 {[%emt 0:01:27]} Kf5 {[%emt 0:05:11]} 33. Kf3 {[%emt 0:00:06]} Ke6 {[%emt 0:00:30]} 34. Ke3 {[%emt 0:00:15]} Bf6 {[%emt 0:01:40]} 35. Kf3 {[%emt 0:01:05]} Kd7 {[%emt 0:00:26]} 36. g4 {[%emt 0:01:21]} hxg4+ {[%emt 0:01:38]} 37. Kxg4 {[%emt 0:00:05]} Ke6 {[%emt 0:01:22]} 38. g3 {[%emt 0:01:10]} Be7 {[%emt 0:01:02]} 39. Kf3 {[%emt 0:12:42]} f5 {[%emt 0:01:09]} 40. Ke3 {[%emt 0:00:00]} g5 {[%emt 0:00:49]} 41. Kf3 {[%emt 0:00:00]} gxf4 {[%emt 0:02:33]} 42. gxf4 {[%emt 0:00:00]} Bf6 {[%emt 0:01:20]} 43. Ke3 {[%emt 0:00:00]} Kd7 {[%emt 0:01:09]} 44. Kd3 {[%emt 0:00:00]} Bg7 {[%emt 0:01:31]} 45. Ne3 {[%emt 0:00:00]} Ke6 {[%emt 0:00:12]} 46. Ng2 {[%emt 0:00:00]} Kf7 {[%emt 0:01:05]} 47. Nh4 {[%emt 0:00:00]} Ke6 {[%emt 0:00:41]} 48. Ke3 {[%emt 0:00:00]} Bf6 {[%emt 0:01:27]} 49. Nf3 {[%emt 0:00:00]} Kf7 {[%emt 0:00:34]} 50. Kf2 {[%emt 0:00:35]} Kg6 {[%emt 0:00:25]} 51. Kg3 {[%emt 0:01:09]} Kh5 {[%emt 0:00:47]} 52. Ne5 {[%emt 0:01:02]} Bh4+ {[%emt 0:00:38]} 53. Kf3 {[%emt 0:00:25]} Bf6 {[%emt 0:02:42]} 54. Kg3 {[%emt 0:00:31]} Ne6 {[%emt 0:05:07]} 55. Nxb7 {[%emt 0:00:55]} Nxd4 {[%emt 0:00:10]} 56. Nd3 {[%emt 0:02:08]} Kg6 {[%emt 0:00:33]} 57. Na5 {[%emt 0:00:25]} Kf7 {[%emt 0:00:47]} 58. Kf2 {[%emt 0:00:42]} Ke6 {[%emt 0:00:16]} 59. Ke3 {[%emt 0:00:20]} Kd7 {[%emt 0:00:55]} 60. Nb7 {[%emt 0:01:12]} Nb5 {[%emt 0:01:19]} 61. Na5 {[%emt 0:00:16]} Na7 {[%emt 0:04:50]} 62. Nb3 {[%emt 0:00:20]} Nb5 {[%emt 0:00:52]} 63. Na5 {[%emt 0:00:40]} Bg7 {[%emt 0:01:17]} 64. Kf3 {[%emt 0:00:20]} Nd4+ {[%emt 0:00:31]} 65. Ke3 {[%emt 0:00:09]} Kc7 {[%emt 0:00:31]} 66. Kf2 {[%emt 0:00:25]} Kd7 {[%emt 0:04:06]} 67. Ke3 {[%emt 0:00:04]} Nb5 {[%emt 0:00:16]} 68. Kf3 {[%emt 0:00:24]} Nc7 {[%emt 0:00:36]} 69. Nb7 {[%emt 0:01:08]} Nb5 {[%emt 0:00:19]} 1/2-1/2

[Event "1st Regina Cattolica Open 2019"]
[Site "Cattolica"]
[Date "2019.06.16"]
[Round "5.11"]
[White "Casagrande, Federico"]
[Black "Tonetto, Federico"]
[Result "1/2-1/2"]
[ECO "E97"]
[WhiteElo "1883"]
[BlackElo "2033"]
[Annotator "NA"]
[PlyCount "140"]
[EventDate "2019.06.14"]
[EventType "swiss"]
[EventCountry "ITA"]
[SourceTitle "playchess.com"]
[Source "ChessBase"]
[SourceQuality "1"]
[TimeControl "5400+30"]

1. d4 {[%emt 0:00:00]} Nf6 {[%emt 0:00:00]} 2. c4 {[%emt 0:00:00]} g6 {[%emt 0:00:00]} 3. Nc3 {[%emt 0:00:00]} Bg7 {[%emt 0:00:00]} 4. e4 {[%emt 0:00:26]} d6 {[%emt 0:00:00]} 5. Nf3 {[%emt 0:00:18]} O-O {[%emt 0:00:00]} 6. Be2 {[%emt 0:00:04]} e5 {[%emt 0:00:00]} 7. O-O {[%emt 0:00:08]} Nc6 {[%emt 0:00:00]} 8. d5 {[%emt 0:00:07]} Ne7 {[%emt 0:00:01]} 9. b4 {[%emt 0:00:07]} Nh5 {[%emt 0:00:06]} 10. a4 {[%emt 0:03:53]} f5 {[%emt 0:06:03]} 11. Nd2 {[%emt 0:01:11]} Nf6 {[%emt 0:01:27]} 12. Ba3 {[%emt 0:04:50]} fxe4 {[%emt 0:11:38]} 13. Ndxe4 {[%emt 0:10:46]} Nxe4 {[%emt 0:00:20]} 14. Nxe4 {[%emt 0:00:05]} Bf5 {[%emt 0:10:15]} 15. Nc3 {[%emt 0:10:06]} b6 {[%emt 0:06:59]} 16. Bc1 {[%emt 0:10:27]} a5 {[%emt 0:03:57]} 17. Qb3 {[%emt 0:01:43]} axb4 {[%emt 0:06:54]} 18. Qxb4 {[%emt 0:05:32]} Bd7 {[%emt 0:06:44]} 19. Ra3 {[%emt 0:15:24]} Nf5 {[%emt 0:05:22]} 20. Ne4 {[%emt 0:08:58]} Nd4 {[%emt 0:06:08]} 21. Bd1 {[%emt 0:01:31]} Qh4 {[%emt 0:08:33]} 22. Qe1 {[%emt 0:10:08]} Bh6 {[%emt 0:04:56]} 23. Bxh6 {[%emt 0:03:33]} Qxh6 {[%emt 0:00:06]} 24. Qe3 {[%emt 0:03:10]} Qf4 {[%emt 0:06:00]} 25. Ng3 {[%emt 0:03:42]} Ra5 {[%emt 0:02:14]} 26. Qxf4 {[%emt 0:02:31]} Rxf4 {[%emt 0:00:27]} 27. Re1 {[%emt 0:00:18]} Rf8 {[%emt 0:02:20]} 28. Ne2 {[%emt 0:01:28]} Nf5 {[%emt 0:00:58]} 29. f4 {[%emt 0:01:20]} Re8 {[%emt 0:02:20]} 30. Kf2 {[%emt 0:00:53]} Kf7 {[%emt 0:02:18]} 31. Bc2 {[%emt 0:00:53]} exf4 {[%emt 0:01:26]} 32. Nxf4 {[%emt 0:00:18]} Rxe1 {[%emt 0:00:12]} 33. Kxe1 {[%emt 0:00:02]} Nd4 {[%emt 0:01:00]} 34. Bd1 {[%emt 0:00:12]} Ra8 {[%emt 0:00:27]} 35. Kd2 {[%emt 0:00:31]} g5 {[%emt 0:01:16]} 36. Nd3 {[%emt 0:01:14]} Kg6 {[%emt 0:01:17]} 37. Nf2 {[%emt 0:01:24]} h6 {[%emt 0:02:21]} 38. Kc3 {[%emt 0:00:30]} Nf5 {[%emt 0:00:09]} 39. Kb4 {[%emt 0:00:15]} Kg7 {[%emt 0:01:32]} 40. g3 {[%emt 0:00:43]} Ne7 {[%emt 0:02:07]} 41. Bc2 {[%emt 0:00:48]} Ng6 {[%emt 0:00:42]} 42. a5 {[%emt 0:00:26]} bxa5+ {[%emt 0:00:17]} 43. Rxa5 {[%emt 0:00:08]} Rxa5 {[%emt 0:00:29]} 44. Kxa5 {[%emt 0:00:02]} Ne5 {[%emt 0:00:11]} 45. Ka6 {[%emt 0:00:54]} Bc8+ {[%emt 0:00:40]} 46. Ka7 {[%emt 0:00:10]} Nxc4 {[%emt 0:01:01]} 47. Kb8 {[%emt 0:00:04]} Ba6 {[%emt 0:00:15]} 48. Kxc7 {[%emt 0:00:08]} Ne3 {[%emt 0:01:27]} 49. Bb3 {[%emt 0:00:34]} Nf1 {[%emt 0:00:51]} 50. Kxd6 {[%emt 0:00:35]} Nxh2 {[%emt 0:00:07]} 51. Ke7 {[%emt 0:00:29]} Nf1 {[%emt 0:00:39]} 52. d6 {[%emt 0:00:34]} Bb5 {[%emt 0:00:31]} 53. g4 {[%emt 0:01:23]} Ne3 {[%emt 0:00:07]} 54. Be6 {[%emt 0:00:16]} Ng2 {[%emt 0:01:50]} 55. Nd3 {[%emt 0:01:33]} Nf4 {[%emt 0:00:00]} 56. Nxf4 {[%emt 0:00:35]} gxf4 {[%emt 0:00:00]} 57. Bd5 {[%emt 0:00:12]} Kg6 {[%emt 0:00:03]} 58. Bf3 {[%emt 0:00:40]} Kg5 {[%emt 0:00:26]} 59. Be2 {[%emt 0:00:35]} Bc6 {[%emt 0:00:15]} 60. Bf3 {[%emt 0:00:25]} Bb5 {[%emt 0:00:04]} 61. Be2 {[%emt 0:00:07]} Bc6 {[%emt 0:00:03]} 62. d7 {[%emt 0:00:19]} Bxd7 {[%emt 0:00:08]} 63. Kxd7 {[%emt 0:00:04]} Kh4 {[%emt 0:00:05]} 64. Ke6 {[%emt 0:00:04]} Kg3 {[%emt 0:00:25]} 65. Kf5 {[%emt 0:00:06]} f3 {[%emt 0:00:30]} 66. Bd1 {[%emt 0:00:35]} f2 {[%emt 0:00:28]} 67. Be2 {[%emt 0:00:05]} Kh4 {[%emt 0:00:25]} 68. Kf4 {[%emt 0:00:59]} Kh3 {[%emt 0:00:10]} 69. Kf3 {[%emt 0:00:40]} Kh4 {[%emt 0:00:12]} 70. Kxf2 {[%emt 0:00:11]} h5 {[%emt 0:00:20]} 1/2-1/2